[Event "CZE-ch Amateurs 2022"]
[Site "Luhacovice"]
[Date "2022.03.19"]
[Round "9.17"]
[White "Kupsa, Matej"]
[Black "Stary, Lukas"]
[Result "1/2-1/2"]
[ECO "D02"]
[WhiteElo "2097"]
[BlackElo "1856"]
[Annotator "NA"]
[PlyCount "44"]
[EventDate "2022.03.12"]
[EventType "swiss"]
[EventCountry "CZE"]
[SourceTitle "playchess.com"]
[Source "ChessBase"]
[SourceQuality "1"]
[TimeControl "5400+30"]

1. d4 {[%emt 0:00:02]} d5 {[%emt 0:00:51]} 2. Nf3 {[%emt 0:00:20]} e6 {[%emt 0:00:49]} 3. g3 {[%emt 0:01:28]} c5 {[%emt 0:00:32]} 4. e3 {[%emt 0:09:29]} Nf6 {[%emt 0:01:17]} 5. Bg2 {[%emt 0:00:09]} Nc6 {[%emt 0:00:58]} 6. O-O {[%emt 0:00:07]} b6 {[%emt 0:03:21]} 7. c4 {[%emt 0:29:27]} cxd4 {[%emt 0:03:56]} 8. Nxd4 {[%emt 0:01:02]} Nxd4 {[%emt 0:00:32]} 9. exd4 {[%emt 0:10:10]} Bb7 {[%emt 0:00:25]} 10. Nc3 {[%emt 0:01:50]} Be7 {[%emt 0:01:52]} 11. Bf4 {[%emt 0:06:21]} O-O {[%emt 0:00:48]} 12. Re1 {[%emt 0:00:31]} Qd7 {[%emt 0:01:11]} 13. Qf3 {[%emt 0:02:03]} Rac8 {[%emt 0:05:26]} 14. Rac1 {[%emt 0:00:44]} Ba8 {[%emt 0:00:40]} 15. cxd5 {[%emt 0:02:25]} Nxd5 {[%emt 0:01:27]} 16. Nxd5 {[%emt 0:00:25]} Bxd5 {[%emt 0:01:37]} 17. Qe3 $19 {[%emt 0:00:35]} (17. Qd3 $15) 17... Bxg2 {[%emt 0:00:23]} 18. Kxg2 {[%emt 0:00:01]} Qd5+ {[%emt 0:00:35]} 19. Qe4 {[%emt 0:00:06]} Qxe4+ {[%emt 0:06:43]} 20. Rxe4 {[%emt 0:00:10]} Rxc1 {[%emt 0:00:14]} 21. Bxc1 {[%emt 0:00:04]} Bf6 {[%emt 0:03:31]} 22. Bd2 {[%emt 0:00:41]} Rd8 {[%emt 0:00:43]} 1/2-1/2

[Event "CZE-ch Amateurs 2022"]
[Site "Luhacovice"]
[Date "2022.03.19"]
[Round "9.18"]
[White "Volny, Patrik"]
[Black "Galicek, Stanislav"]
[Result "0-1"]
[ECO "A49"]
[WhiteElo "1798"]
[BlackElo "2079"]
[Annotator "ChessBase"]
[PlyCount "62"]
[EventDate "2022.03.12"]
[EventType "swiss"]
[EventCountry "CZE"]
[SourceTitle "playchess.com"]
[Source "ChessBase"]
[SourceQuality "1"]
[TimeControl "5400+30"]

1. d4 {[%emt 0:00:11]} Nf6 {[%emt 0:00:11]} 2. Nf3 {[%emt 0:00:18]} g6 {[%emt 0:00:09]} 3. g3 {[%emt 0:00:17]} Bg7 {[%emt 0:00:07]} 4. Bg2 {[%emt 0:00:07]} O-O {[%emt 0:00:12]} 5. O-O {[%emt 0:00:07]} d6 {[%emt 0:00:36]} 6. b3 {[%emt 0:01:04]} c5 {[%emt 0:07:02]} 7. c3 {[%emt 0:02:23]} Nc6 {[%emt 0:10:21]} 8. Bb2 {[%emt 0:01:08]} cxd4 {[%emt 0:03:41]} 9. cxd4 {[%emt 0:00:33]} d5 {[%emt 0:03:09]} 10. a3 {[%emt 0:01:42]} Ne4 {[%emt 0:05:08]} 11. Ne5 {[%emt 0:03:39]} Nxe5 {[%emt 0:12:51]} 12. dxe5 {[%emt 0:00:22]} Bf5 {[%emt 0:01:39]} 13. Nd2 {[%emt 0:00:41]} Qa5 {[%emt 0:07:51]} 14. Nxe4 {[%emt 0:03:42]} dxe4 {[%emt 0:01:11]} 15. Qd4 {[%emt 0:00:42]} Rfd8 {[%emt 0:01:21]} 16. Qc3 {[%emt 0:01:25]} Qd5 {[%emt 0:10:56]} 17. f4 {[%emt 0:06:30]} Rac8 {[%emt 0:02:25]} 18. Qe3 {[%emt 0:06:28]} Qd2 {[%emt 0:01:38]} 19. Qxd2 {[%emt 0:03:34]} Rxd2 {[%emt 0:00:04]} 20. Bc1 {[%emt 0:00:59]} Rxe2 {[%emt 0:00:30]} 21. Rf2 {[%emt 0:01:25]} Rxf2 {[%emt 0:10:56]} 22. Kxf2 {[%emt 0:05:41]} Rc2+ {[%emt 0:00:02]} 23. Kg1 {[%emt 0:00:55]} b6 {[%emt 0:03:08]} 24. h3 {[%emt 0:00:19]} h5 {[%emt 0:00:32]} 25. g4 {[%emt 0:00:36]} hxg4 {[%emt 0:00:14]} 26. hxg4 {[%emt 0:00:07]} Bxg4 {[%emt 0:00:07]} 27. Bxe4 {[%emt 0:00:04]} Rc3 {[%emt 0:01:09]} 28. Bd5 {[%emt 0:01:17]} e6 {[%emt 0:00:55]} 29. Bc4 {[%emt 0:00:38]} Bf8 {[%emt 0:00:36]} 30. Bb2 {[%emt 0:01:59]} Bc5+ {[%emt 0:00:55]} 31. Kh1 {[%emt 0:00:54]} Rc2 {[%emt 0:01:00]} 0-1

[Event "CZE-ch Amateurs 2022"]
[Site "Luhacovice"]
[Date "2022.03.19"]
[Round "9.19"]
[White "Dudek Vojtech"]
[Black "Strapec, Lukas"]
[Result "1-0"]
[ECO "B40"]
[WhiteElo "2045"]
[BlackElo "1835"]
[Annotator "ChessBase"]
[PlyCount "73"]
[EventDate "2022.03.12"]
[EventType "swiss"]
[EventCountry "CZE"]
[SourceTitle "playchess.com"]
[Source "ChessBase"]
[SourceQuality "1"]
[TimeControl "5400+30"]

1. e4 {[%emt 0:00:06]} c5 {[%emt 0:00:21]} 2. Nf3 {[%emt 0:00:03]} e6 {[%emt 0:00:24]} 3. b3 {[%emt 0:00:18]} Nc6 {[%emt 0:09:39]} 4. Bb2 {[%emt 0:00:58]} Nf6 {[%emt 0:09:55]} 5. e5 {[%emt 0:02:20]} Nd5 {[%emt 0:01:20]} 6. c4 {[%emt 0:01:55]} Nc7 {[%emt 0:04:56]} 7. d4 {[%emt 0:02:52]} cxd4 {[%emt 0:00:54]} 8. Bd3 {[%emt 0:04:07]} d5 {[%emt 0:09:08]} 9. O-O {[%emt 0:07:36]} Bc5 {[%emt 0:07:57]} 10. Na3 {[%emt 0:04:51]} h6 {[%emt 0:08:34]} 11. Rc1 {[%emt 0:03:54]} b6 {[%emt 0:05:01]} 12. h3 {[%emt 0:20:54]} O-O {[%emt 0:08:44]} 13. Nc2 {[%emt 0:05:06]} Bb7 {[%emt 0:08:05]} 14. Ncxd4 {[%emt 0:02:18]} dxc4 {[%emt 0:03:57]} 15. bxc4 {[%emt 0:03:28]} Bxd4 {[%emt 0:02:27]} 16. Nxd4 {[%emt 0:01:37]} Nxe5 {[%emt 0:04:53]} 17. Nxe6 {[%emt 0:03:46]} Nf3+ {[%emt 0:08:11]} 18. Qxf3 {[%emt 0:01:46]} Bxf3 {[%emt 0:01:18]} 19. Nxd8 {[%emt 0:00:14]} Raxd8 {[%emt 0:00:38]} 20. Bf5 {[%emt 0:02:03]} Bc6 {[%emt 0:01:19]} 21. c5 {[%emt 0:01:19]} b5 {[%emt 0:00:49]} 22. Rfd1 {[%emt 0:02:39]} Nd5 {[%emt 0:02:16]} 23. Be4 {[%emt 0:02:26]} f5 {[%emt 0:00:35]} 24. Bf3 {[%emt 0:00:31]} Rfe8 {[%emt 0:00:35]} 25. Rd4 {[%emt 0:08:09]} Ne7 {[%emt 0:00:29]} 26. Rxd8 {[%emt 0:00:17]} Rxd8 {[%emt 0:00:05]} 27. Re1 {[%emt 0:00:06]} Nd5 {[%emt 0:00:55]} 28. Re6 {[%emt 0:00:29]} Ba8 {[%emt 0:00:31]} 29. Rg6 {[%emt 0:00:35]} Nf4 {[%emt 0:00:30]} 30. Rxg7+ {[%emt 0:00:25]} Kf8 {[%emt 0:00:19]} 31. c6 {[%emt 0:01:29]} Rc8 {[%emt 0:00:40]} 32. Rh7 {[%emt 0:00:35]} Ng6 {[%emt 0:00:21]} 33. Bd5 {[%emt 0:01:55]} Bxc6 {[%emt 0:00:37]} 34. Ba3+ {[%emt 0:00:11]} Ne7 {[%emt 0:00:32]} 35. Rxe7 {[%emt 0:00:59]} b4 {[%emt 0:00:28]} 36. Bxb4 {[%emt 0:00:16]} a5 {[%emt 0:00:27]} 37. Rc7+ {[%emt 0:00:25]} 1-0

[Event "CZE-ch Amateurs 2022"]
[Site "Luhacovice"]
[Date "2022.03.19"]
[Round "9.20"]
[White "Svobodova, Michaela"]
[Black "Dvorak, Milan"]
[Result "1-0"]
[ECO "B08"]
[WhiteElo "2054"]
[BlackElo "1838"]
[Annotator "ChessBase"]
[PlyCount "97"]
[EventDate "2022.03.12"]
[EventType "swiss"]
[EventCountry "CZE"]
[SourceTitle "playchess.com"]
[Source "ChessBase"]
[SourceQuality "1"]
[TimeControl "5400+30"]

1. e4 {[%emt 0:00:30]} d6 {[%emt 0:00:18]} 2. d4 {[%emt 0:00:34]} Nf6 {[%emt 0:00:04]} 3. Nc3 {[%emt 0:00:59]} g6 {[%emt 0:00:02]} 4. Nf3 {[%emt 0:00:16]} Bg7 {[%emt 0:00:02]} 5. Be3 {[%emt 0:01:17]} O-O {[%emt 0:02:56]} 6. Qd2 {[%emt 0:00:52]} Bg4 {[%emt 0:10:16]} 7. h3 {[%emt 0:02:37]} Bxf3 {[%emt 0:00:03]} 8. gxf3 {[%emt 0:00:17]} e5 {[%emt 0:04:14]} 9. O-O-O {[%emt 0:03:05]} Nbd7 {[%emt 0:01:43]} 10. h4 {[%emt 0:08:05]} Nh5 {[%emt 0:06:28]} 11. dxe5 {[%emt 0:07:46]} Nxe5 {[%emt 0:01:19]} 12. Be2 {[%emt 0:01:06]} Nf6 {[%emt 0:07:33]} 13. Bh6 {[%emt 0:06:41]} Qd7 {[%emt 0:10:23]} 14. Rdg1 {[%emt 0:03:42]} Qe6 {[%emt 0:09:06]} 15. h5 {[%emt 0:07:02]} Bh8 {[%emt 0:20:48]} 16. Qg5 {[%emt 0:08:03]} Ned7 {[%emt 0:08:27]} 17. hxg6 {[%emt 0:06:48]} fxg6 {[%emt 0:00:53]} 18. Bxf8 {[%emt 0:06:43]} Rxf8 {[%emt 0:00:51]} 19. Bd3 {[%emt 0:12:29]} Ne5 {[%emt 0:02:52]} 20. Qg3 {[%emt 0:01:38]} Nxd3+ {[%emt 0:00:09]} 21. cxd3 {[%emt 0:00:12]} Kf7 {[%emt 0:01:10]} 22. f4 {[%emt 0:05:52]} Ke8 {[%emt 0:01:45]} 23. Qg5 {[%emt 0:03:21]} Kd7 {[%emt 0:01:32]} 24. Qb5+ {[%emt 0:01:51]} Kc8 {[%emt 0:00:32]} 25. Kb1 {[%emt 0:01:17]} a6 {[%emt 0:00:42]} 26. Qa5 {[%emt 0:01:01]} c6 {[%emt 0:03:18]} 27. Rc1 {[%emt 0:01:15]} Qf7 {[%emt 0:02:07]} 28. f5 {[%emt 0:02:47]} gxf5 {[%emt 0:01:14]} 29. Qxf5+ {[%emt 0:00:17]} Kb8 {[%emt 0:00:20]} 30. f4 {[%emt 0:02:16]} Qg6 {[%emt 0:01:12]} 31. Qa5 {[%emt 0:01:21]} Qg3 {[%emt 0:00:47]} 32. e5 {[%emt 0:01:17]} Qxd3+ {[%emt 0:00:09]} 33. Ka1 {[%emt 0:00:30]} dxe5 {[%emt 0:00:52]} 34. fxe5 {[%emt 0:00:50]} Nd5 {[%emt 0:00:59]} 35. Rcd1 {[%emt 0:01:04]} Qc2 {[%emt 0:00:33]} 36. Nxd5 {[%emt 0:00:49]} cxd5 {[%emt 0:00:22]} 37. Qxd5 {[%emt 0:00:35]} Rc8 {[%emt 0:00:11]} 38. Qd6+ {[%emt 0:00:35]} Ka8 {[%emt 0:00:05]} 39. Rhe1 {[%emt 0:00:54]} h5 {[%emt 0:01:14]} 40. a3 {[%emt 0:00:39]} Rb8 {[%emt 0:00:25]} 41. Rc1 {[%emt 0:00:25]} Qf2 {[%emt 0:00:22]} 42. Red1 {[%emt 0:00:50]} h4 {[%emt 0:00:17]} 43. Rc7 {[%emt 0:00:48]} Qe2 {[%emt 0:00:23]} 44. Re7 {[%emt 0:00:41]} h3 {[%emt 0:00:10]} 45. Qd2 {[%emt 0:00:26]} Qf3 {[%emt 0:00:23]} 46. Qd3 {[%emt 0:00:11]} Qg2 {[%emt 0:00:21]} 47. Re6 {[%emt 0:00:11]} h2 {[%emt 0:00:57]} 48. Rxa6+ {[%emt 0:00:18]} bxa6 {[%emt 0:00:40]} 49. Qxa6# {[%emt 0:00:05]} 1-0